[Event "Titled Tuesday Blitz March 14 Late 2023"]
[White "Tymrakiewicz, Rafal"]
[Black "Kalajzic, Ivan"]
[WhiteFideId "1108832"]
[BlackFideId "14506378"]
[WhiteElo "2151"]
[BlackElo "2203"]
[Result "0-1"]
[Round "06"]
[TimeControl "180+2"]
[Date "2023.03.14"]
[WhiteClock "0:00:01"]
[BlackClock "0:00:33"]

1. e4 {[%clk 0:03:00]}  Nc6 {[%clk 0:02:59]} 2. Nf3 {[%clk 0:02:59]}  d6 {[%clk 0:02:59]} 3. h3 {[%clk 0:02:58]}  g6 {[%clk 0:02:58]} 4. d4 {[%clk 0:02:58]}  Bg7 {[%clk 0:02:58]} 5. c3 {[%clk 0:02:53]}  a6 {[%clk 0:02:57]} 6. Bg5 {[%clk 0:02:51]}  h6 {[%clk 0:02:55]} 7. Be3 {[%clk 0:02:50]}  b5 {[%clk 0:02:54]} 8. Bd3 {[%clk 0:02:49]}  e5 {[%clk 0:02:52]} 9. d5 {[%clk 0:02:48]}  Nce7 {[%clk 0:02:52]} 10. Nfd2 {[%clk 0:02:42]}  f5 {[%clk 0:02:48]} 11. f3 {[%clk 0:02:42]}  f4 {[%clk 0:02:47]} 12. Bf2 {[%clk 0:02:42]}  Nf6 {[%clk 0:02:44]} 13. a4 {[%clk 0:02:42]}  Rb8 {[%clk 0:02:43]} 14. axb5 {[%clk 0:02:39]}  axb5 {[%clk 0:02:43]} 15. Ra7 {[%clk 0:02:38]}  O-O {[%clk 0:02:35]} 16. b4 {[%clk 0:02:38]}  Ne8 {[%clk 0:02:24]} 17. Qe2 {[%clk 0:02:25]}  Bd7 {[%clk 0:02:22]} 18. O-O {[%clk 0:02:22]}  Bf6 {[%clk 0:02:19]} 19. Na3 {[%clk 0:02:21]}  Nc8 {[%clk 0:02:18]} 20. Ra5 {[%clk 0:02:19]}  Bh4 {[%clk 0:02:13]} 21. Bxb5 {[%clk 0:02:15]}  Bxf2+ {[%clk 0:02:12]} 22. Qxf2 {[%clk 0:02:08]}  g5 {[%clk 0:02:00]} 23. Bxd7 {[%clk 0:02:02]}  Qxd7 {[%clk 0:02:01]} 24. Rb1 {[%clk 0:02:01]}  h5 {[%clk 0:01:54]} 25. b5 {[%clk 0:01:53]}  Rf7 {[%clk 0:01:38]} 26. Kf1 {[%clk 0:01:53]}  Rg7 {[%clk 0:01:38]} 27. Ke2 {[%clk 0:01:52]}  g4 {[%clk 0:01:26]} 28. hxg4 {[%clk 0:01:51]}  hxg4 {[%clk 0:01:27]} 29. Rh1 {[%clk 0:01:46]}  g3 {[%clk 0:01:27]} 30. Qe1 {[%clk 0:01:35]}  Nb6 {[%clk 0:01:24]} 31. c4 {[%clk 0:01:32]}  Rh7 {[%clk 0:01:21]} 32. Nc2 {[%clk 0:01:28]}  Rh2 {[%clk 0:01:13]} 33. Rxh2 {[%clk 0:01:23]}  gxh2 {[%clk 0:01:12]} 34. Qh1 {[%clk 0:01:22]}  Qh7 {[%clk 0:01:10]} 35. Kd3 {[%clk 0:01:04]}  Nf6 {[%clk 0:00:53]} 36. Nf1 {[%clk 0:01:01]}  Nbxd5 {[%clk 0:00:52]} 37. cxd5 {[%clk 0:01:00]}  Nxd5 {[%clk 0:00:53]} 38. Qxh2 {[%clk 0:00:53]}  Qg6 {[%clk 0:00:53]} 39. Qh3 {[%clk 0:00:47]}  Nf6 {[%clk 0:00:51]} 40. g4 {[%clk 0:00:41]}  d5 {[%clk 0:00:48]} 41. Nd2 {[%clk 0:00:24]}  Rd8 {[%clk 0:00:47]} 42. Ke2 {[%clk 0:00:23]}  dxe4 {[%clk 0:00:46]} 43. fxe4 {[%clk 0:00:22]}  Nxe4 {[%clk 0:00:44]} 44. Nc4 {[%clk 0:00:09]}  Ng3+ {[%clk 0:00:39]} 45. Kf3 {[%clk 0:00:02]}  Qe4+ {[%clk 0:00:35]} 46. Kf2 {[%clk 0:00:01]}  Qxc2+ {[%clk 0:00:33]} 0-1


[Site "https://www.chess.com"]

[Event "Titled Tuesday Blitz March 14 Late 2023"]
[White "Womacka, Mathias"]
[Black "Kohler, Aran"]
[WhiteFideId "4611390"]
[BlackFideId "1002856"]
[WhiteElo "2377"]
[BlackElo "2256"]
[Result "1-0"]
[Round "06"]
[TimeControl "180+2"]
[Date "2023.03.14"]
[WhiteClock "0:00:17"]
[BlackClock "0:00:19"]

1. e4 {[%clk 0:03:00]}  c6 {[%clk 0:02:59]} 2. d4 {[%clk 0:03:00]}  d5 {[%clk 0:02:59]} 3. Nd2 {[%clk 0:03:00]}  dxe4 {[%clk 0:02:59]} 4. Nxe4 {[%clk 0:03:01]}  Bf5 {[%clk 0:02:59]} 5. Ng3 {[%clk 0:03:01]}  Bg6 {[%clk 0:02:59]} 6. h4 {[%clk 0:03:01]}  h6 {[%clk 0:02:59]} 7. Nf3 {[%clk 0:03:00]}  Nd7 {[%clk 0:02:58]} 8. h5 {[%clk 0:03:00]}  Bh7 {[%clk 0:02:58]} 9. Bd3 {[%clk 0:03:00]}  Ngf6 {[%clk 0:02:59]} 10. Bxh7 {[%clk 0:03:00]}  Nxh7 {[%clk 0:02:59]} 11. Qe2 {[%clk 0:02:54]}  e6 {[%clk 0:03:00]} 12. Bd2 {[%clk 0:02:54]}  Be7 {[%clk 0:02:59]} 13. O-O-O {[%clk 0:02:53]}  Ng5 {[%clk 0:02:59]} 14. Ne5 {[%clk 0:02:48]}  Nxe5 {[%clk 0:02:42]} 15. dxe5 {[%clk 0:02:49]}  Qc7 {[%clk 0:02:16]} 16. f4 {[%clk 0:02:46]}  Nh7 {[%clk 0:02:14]} 17. Be3 {[%clk 0:02:33]}  O-O {[%clk 0:02:14]} 18. Ne4 {[%clk 0:02:31]}  Rad8 {[%clk 0:02:09]} 19. g4 {[%clk 0:02:31]}  Rxd1+ {[%clk 0:02:09]} 20. Rxd1 {[%clk 0:02:31]}  Rd8 {[%clk 0:02:09]} 21. Rxd8+ {[%clk 0:02:16]}  Qxd8 {[%clk 0:02:07]} 22. a4 {[%clk 0:02:01]}  b6 {[%clk 0:01:59]} 23. Qc4 {[%clk 0:01:52]}  Qd5 {[%clk 0:01:53]} 24. Qxd5 {[%clk 0:01:52]}  cxd5 {[%clk 0:01:51]} 25. Nc3 {[%clk 0:01:51]}  Bd8 {[%clk 0:01:24]} 26. Nb5 {[%clk 0:01:48]}  a6 {[%clk 0:01:24]} 27. Nd6 {[%clk 0:01:44]}  f6 {[%clk 0:01:20]} 28. b4 {[%clk 0:01:35]}  fxe5 {[%clk 0:01:20]} 29. fxe5 {[%clk 0:01:35]}  Ng5 {[%clk 0:01:15]} 30. b5 {[%clk 0:01:35]}  axb5 {[%clk 0:01:09]} 31. axb5 {[%clk 0:01:36]}  Nf3 {[%clk 0:01:07]} 32. Bf4 {[%clk 0:01:25]}  Bc7 {[%clk 0:00:58]} 33. Kb2 {[%clk 0:01:06]}  Kf8 {[%clk 0:00:58]} 34. c4 {[%clk 0:01:01]}  Bxd6 {[%clk 0:00:51]} 35. exd6 {[%clk 0:01:00]}  dxc4 {[%clk 0:00:51]} 36. Be3 {[%clk 0:00:53]}  Ke8 {[%clk 0:00:48]} 37. Bxb6 {[%clk 0:00:53]}  Kd7 {[%clk 0:00:49]} 38. Bc5 {[%clk 0:00:53]}  Ne5 {[%clk 0:00:46]} 39. Kc3 {[%clk 0:00:47]}  Nxg4 {[%clk 0:00:40]} 40. Kxc4 {[%clk 0:00:32]}  e5 {[%clk 0:00:36]} 41. Kd5 {[%clk 0:00:30]}  e4 {[%clk 0:00:36]} 42. Kxe4 {[%clk 0:00:29]}  Nf6+ {[%clk 0:00:35]} 43. Ke5 {[%clk 0:00:21]}  Nxh5 {[%clk 0:00:35]} 44. b6 {[%clk 0:00:20]}  Kc6 {[%clk 0:00:31]} 45. Ke6 {[%clk 0:00:20]}  Nf6 {[%clk 0:00:24]} 46. Bd4 {[%clk 0:00:20]}  Ne8 {[%clk 0:00:23]} 47. d7 {[%clk 0:00:18]}  Nc7+ {[%clk 0:00:19]} 48. bxc7 {[%clk 0:00:18]}  Kxc7 {[%clk 0:00:19]} 49. Ke7 {[%clk 0:00:17]} 1-0


[Site "https://www.chess.com"]

[Event "Titled Tuesday Blitz March 14 Late 2023"]
[White "Buchenau, Frank"]
[Black "Campelo, Leandro Fabricio"]
[WhiteFideId "4604350"]
[BlackFideId "2103346"]
[WhiteElo "2157"]
[BlackElo "2070"]
[Result "0-1"]
[Round "06"]
[TimeControl "180+2"]
[Date "2023.03.14"]
[WhiteClock "0:00:03"]
[BlackClock "0:00:04"]

1. e4 {[%clk 0:03:00]}  c5 {[%clk 0:02:59]} 2. Nf3 {[%clk 0:03:00]}  e6 {[%clk 0:02:58]} 3. d4 {[%clk 0:03:00]}  cxd4 {[%clk 0:02:58]} 4. Nxd4 {[%clk 0:03:01]}  Nc6 {[%clk 0:02:57]} 5. Nc3 {[%clk 0:02:59]}  Qc7 {[%clk 0:02:55]} 6. Be3 {[%clk 0:02:57]}  a6 {[%clk 0:02:54]} 7. Bd3 {[%clk 0:02:54]}  Nf6 {[%clk 0:02:53]} 8. O-O {[%clk 0:02:51]}  Bb4 {[%clk 0:02:52]} 9. Nxc6 {[%clk 0:02:34]}  bxc6 {[%clk 0:02:52]} 10. f4 {[%clk 0:02:21]}  d5 {[%clk 0:02:46]} 11. e5 {[%clk 0:02:20]}  Nd7 {[%clk 0:02:46]} 12. Qg4 {[%clk 0:02:14]}  g6 {[%clk 0:02:39]} 13. Na4 {[%clk 0:02:07]}  Be7 {[%clk 0:02:33]} 14. c4 {[%clk 0:02:05]}  dxc4 {[%clk 0:01:56]} 15. Bxc4 {[%clk 0:02:04]}  c5 {[%clk 0:01:49]} 16. Rac1 {[%clk 0:01:55]}  Bb7 {[%clk 0:01:49]} 17. Rfd1 {[%clk 0:01:36]}  h5 {[%clk 0:01:45]} 18. Qh3 {[%clk 0:01:30]}  Nb6 {[%clk 0:01:14]} 19. Nxb6 {[%clk 0:01:20]}  Qxb6 {[%clk 0:01:14]} 20. b4 {[%clk 0:01:09]}  Qxb4 {[%clk 0:01:01]} 21. Bxe6 {[%clk 0:00:50]}  fxe6 {[%clk 0:00:30]} 22. Qxe6 {[%clk 0:00:38]}  Qe4 {[%clk 0:00:27]} 23. Qd7+ {[%clk 0:00:14]}  Kf8 {[%clk 0:00:20]} 24. Qd2 {[%clk 0:00:13]}  Rd8 {[%clk 0:00:18]} 25. Qf2 {[%clk 0:00:13]}  Rxd1+ {[%clk 0:00:14]} 26. Rxd1 {[%clk 0:00:14]}  Bh4 {[%clk 0:00:14]} 27. Qd2 {[%clk 0:00:12]}  Kg7 {[%clk 0:00:07]} 28. Bxc5 {[%clk 0:00:10]}  Rd8 {[%clk 0:00:05]} 29. Qc1 {[%clk 0:00:03]}  Qxg2# {[%clk 0:00:04]} 0-1


[Site "https://www.chess.com"]

[Event "Titled Tuesday Blitz March 14 Late 2023"]
[White "Ansh M Shah"]
[Black "DeyanKostov"]
[WhiteFideId "25033379"]
[WhiteElo "2084"]
[BlackElo "2321"]
[Result "0-1"]
[Round "06"]
[TimeControl "180+2"]
[Date "2023.03.14"]
[WhiteClock "0:00:09"]
[BlackClock "0:00:12"]

1. d4 {[%clk 0:02:56]}  d5 {[%clk 0:02:59]} 2. c4 {[%clk 0:02:57]}  dxc4 {[%clk 0:03:00]} 3. e3 {[%clk 0:02:55]}  Nf6 {[%clk 0:02:59]} 4. Bxc4 {[%clk 0:02:54]}  e6 {[%clk 0:02:59]} 5. Nf3 {[%clk 0:02:54]}  a6 {[%clk 0:02:59]} 6. a4 {[%clk 0:02:54]}  c5 {[%clk 0:02:59]} 7. O-O {[%clk 0:02:53]}  Nc6 {[%clk 0:02:59]} 8. dxc5 {[%clk 0:02:51]}  Qxd1 {[%clk 0:02:58]} 9. Rxd1 {[%clk 0:02:52]}  Bxc5 {[%clk 0:02:58]} 10. b3 {[%clk 0:02:51]}  O-O {[%clk 0:02:58]} 11. Bb2 {[%clk 0:02:52]}  Na5 {[%clk 0:02:49]} 12. Ba3 {[%clk 0:02:49]}  Bxa3 {[%clk 0:02:48]} 13. Nxa3 {[%clk 0:02:50]}  Bd7 {[%clk 0:02:41]} 14. b4 {[%clk 0:02:44]}  Nxc4 {[%clk 0:02:40]} 15. Nxc4 {[%clk 0:02:45]}  Rad8 {[%clk 0:02:34]} 16. Nb6 {[%clk 0:02:15]}  Bc6 {[%clk 0:02:30]} 17. Nd4 {[%clk 0:02:15]}  Bd5 {[%clk 0:02:25]} 18. Rdc1 {[%clk 0:02:07]}  Rd6 {[%clk 0:02:14]} 19. a5 {[%clk 0:02:07]}  Bc6 {[%clk 0:02:02]} 20. h3 {[%clk 0:01:45]}  Nd5 {[%clk 0:02:00]} 21. Nxc6 {[%clk 0:01:34]}  Rxc6 {[%clk 0:01:44]} 22. Rxc6 {[%clk 0:01:13]}  bxc6 {[%clk 0:01:45]} 23. Rc1 {[%clk 0:00:57]}  Nxb4 {[%clk 0:01:40]} 24. Rc4 {[%clk 0:00:57]}  Nd5 {[%clk 0:01:30]} 25. Rxc6 {[%clk 0:00:56]}  Nb4 {[%clk 0:01:09]} 26. Rc4 {[%clk 0:00:46]}  Nd3 {[%clk 0:00:48]} 27. Kf1 {[%clk 0:00:21]}  g6 {[%clk 0:00:45]} 28. Ke2 {[%clk 0:00:21]}  Ne5 {[%clk 0:00:34]} 29. Rc7 {[%clk 0:00:19]}  Rd8 {[%clk 0:00:19]} 30. f4 {[%clk 0:00:19]}  Nd3 {[%clk 0:00:16]} 31. Nd7 {[%clk 0:00:20]}  Nb4 {[%clk 0:00:13]} 32. Ne5 {[%clk 0:00:19]}  Rf8 {[%clk 0:00:13]} 33. Rb7 {[%clk 0:00:16]}  Nd5 {[%clk 0:00:13]} 34. Ra7 {[%clk 0:00:15]}  Nb4 {[%clk 0:00:12]} 35. Kf3 {[%clk 0:00:10]}  f6 {[%clk 0:00:12]} 36. Nd7 {[%clk 0:00:09]}  Rf7 {[%clk 0:00:12]} 37. Ra8+ {[%clk 0:00:09]}  Kg7 {[%clk 0:00:12]} 0-1


[Site "https://www.chess.com"]

[Event "Titled Tuesday Blitz March 14 Late 2023"]
[White "Bochnicka, Vladimir"]
[Black "Kowalysko, Roman"]
[WhiteFideId "14943450"]
[BlackFideId "30918510"]
[WhiteElo "2094"]
[BlackElo "2248"]
[Result "1-0"]
[Round "06"]
[TimeControl "180+2"]
[Date "2023.03.14"]
[WhiteClock "0:01:35"]
[BlackClock "0:01:21"]

1. e4 {[%clk 0:03:00]}  c5 {[%clk 0:02:57]} 2. Nf3 {[%clk 0:03:00]}  Nc6 {[%clk 0:02:58]} 3. d4 {[%clk 0:03:00]}  cxd4 {[%clk 0:02:58]} 4. Nxd4 {[%clk 0:03:01]}  e5 {[%clk 0:02:59]} 5. Nb5 {[%clk 0:03:01]}  d6 {[%clk 0:02:58]} 6. N1c3 {[%clk 0:02:59]}  a6 {[%clk 0:02:59]} 7. Na3 {[%clk 0:03:00]}  Be7 {[%clk 0:02:59]} 8. Nc4 {[%clk 0:02:57]}  Nf6 {[%clk 0:02:58]} 9. Be3 {[%clk 0:02:54]}  O-O {[%clk 0:02:58]} 10. Nb6 {[%clk 0:02:50]}  Rb8 {[%clk 0:02:56]} 11. Bc4 {[%clk 0:02:47]}  Bf5 {[%clk 0:02:51]} 12. exf5 {[%clk 0:02:36]}  Nd7 {[%clk 0:02:37]} 13. Nbd5 {[%clk 0:02:32]}  Bg5 {[%clk 0:02:33]} 14. O-O {[%clk 0:02:31]}  Bxe3 {[%clk 0:02:33]} 15. Nxe3 {[%clk 0:02:32]}  Nd4 {[%clk 0:02:33]} 16. Ne2 {[%clk 0:02:31]}  b5 {[%clk 0:02:28]} 17. Bb3 {[%clk 0:02:29]}  Nxb3 {[%clk 0:02:22]} 18. axb3 {[%clk 0:02:29]}  Nf6 {[%clk 0:02:22]} 19. Rxa6 {[%clk 0:02:28]}  Qc8 {[%clk 0:02:21]} 20. Rxd6 {[%clk 0:02:27]}  Ne4 {[%clk 0:02:20]} 21. Rd5 {[%clk 0:02:21]}  Nf6 {[%clk 0:02:16]} 22. Rxe5 {[%clk 0:02:20]}  Rd8 {[%clk 0:02:17]} 23. Nd5 {[%clk 0:01:54]}  Nxd5 {[%clk 0:01:42]} 24. Rxd5 {[%clk 0:01:54]}  Rxd5 {[%clk 0:01:41]} 25. Qxd5 {[%clk 0:01:55]}  Qe8 {[%clk 0:01:40]} 26. Nd4 {[%clk 0:01:48]}  Rd8 {[%clk 0:01:41]} 27. Qxb5 {[%clk 0:01:48]}  Qxb5 {[%clk 0:01:38]} 28. Nxb5 {[%clk 0:01:49]}  Rd2 {[%clk 0:01:38]} 29. c4 {[%clk 0:01:49]}  Rxb2 {[%clk 0:01:39]} 30. Nd4 {[%clk 0:01:43]}  Rd2 {[%clk 0:01:38]} 31. Nf3 {[%clk 0:01:42]}  Rb2 {[%clk 0:01:38]} 32. Rc1 {[%clk 0:01:41]}  Rxb3 {[%clk 0:01:39]} 33. c5 {[%clk 0:01:41]}  Rb8 {[%clk 0:01:40]} 34. c6 {[%clk 0:01:41]}  Rc8 {[%clk 0:01:40]} 35. Nd4 {[%clk 0:01:41]}  Kf8 {[%clk 0:01:39]} 36. Nb5 {[%clk 0:01:41]}  Ke7 {[%clk 0:01:38]} 37. c7 {[%clk 0:01:41]}  Kd7 {[%clk 0:01:39]} 38. Na7 {[%clk 0:01:40]}  Rxc7 {[%clk 0:01:39]} 39. Rxc7+ {[%clk 0:01:41]}  Kxc7 {[%clk 0:01:40]} 40. Nb5+ {[%clk 0:01:42]}  Kc6 {[%clk 0:01:39]} 41. Nc3 {[%clk 0:01:42]}  Kd6 {[%clk 0:01:39]} 42. f4 {[%clk 0:01:42]}  Kc5 {[%clk 0:01:39]} 43. Kf2 {[%clk 0:01:42]}  Kd4 {[%clk 0:01:39]} 44. Ne2+ {[%clk 0:01:42]}  Ke4 {[%clk 0:01:37]} 45. g4 {[%clk 0:01:39]}  h5 {[%clk 0:01:38]} 46. h3 {[%clk 0:01:38]}  hxg4 {[%clk 0:01:38]} 47. hxg4 {[%clk 0:01:39]}  g6 {[%clk 0:01:25]} 48. fxg6 {[%clk 0:01:33]}  fxg6 {[%clk 0:01:25]} 49. Kg3 {[%clk 0:01:33]}  Ke3 {[%clk 0:01:23]} 50. f5 {[%clk 0:01:32]}  gxf5 {[%clk 0:01:21]} 51. gxf5 {[%clk 0:01:33]}  Kxe2 {[%clk 0:01:22]} 52. f6 {[%clk 0:01:33]}  Ke3 {[%clk 0:01:22]} 53. f7 {[%clk 0:01:34]}  Ke4 {[%clk 0:01:23]} 54. f8=Q {[%clk 0:01:35]}  Ke5 {[%clk 0:01:23]} 55. Qf7 {[%clk 0:01:35]}  Ke4 {[%clk 0:01:23]} 56. Qf6 {[%clk 0:01:35]}  Kd5 {[%clk 0:01:22]} 57. Qe7 {[%clk 0:01:35]}  Kd4 {[%clk 0:01:22]} 58. Qe6 {[%clk 0:01:36]}  Kd3 {[%clk 0:01:21]} 59. Qe5 {[%clk 0:01:36]}  Kd2 {[%clk 0:01:22]} 60. Qe4 {[%clk 0:01:36]}  Kd1 {[%clk 0:01:22]} 61. Qe3 {[%clk 0:01:37]}  Kc2 {[%clk 0:01:22]} 62. Kf2 {[%clk 0:01:37]}  Kd1 {[%clk 0:01:22]} 63. Qe2+ {[%clk 0:01:33]}  Kc1 {[%clk 0:01:22]} 64. Ke3 {[%clk 0:01:34]}  Kb1 {[%clk 0:01:22]} 65. Qd2 {[%clk 0:01:34]}  Ka1 {[%clk 0:01:23]} 66. Kd3 {[%clk 0:01:35]}  Kb1 {[%clk 0:01:23]} 67. Kc3 {[%clk 0:01:35]}  Ka1 {[%clk 0:01:22]} 68. Kb3 {[%clk 0:01:33]}  Kb1 {[%clk 0:01:22]} 69. Ka3 {[%clk 0:01:34]}  Ka1 {[%clk 0:01:21]} 70. Qe1# {[%clk 0:01:35]} 1-0


[Site "https://www.chess.com"]

[Event "Titled Tuesday Blitz March 14 Late 2023"]
[White "Tagliati, Eleonore"]
[Black "Mazibuko, Khanya"]
[WhiteFideId "45172234"]
[BlackFideId "14321041"]
[WhiteElo "2225"]
[BlackElo "1873"]
[Result "1-0"]
[Round "06"]
[TimeControl "180+2"]
[Date "2023.03.14"]
[WhiteClock "0:02:08"]
[BlackClock "0:01:42"]

1. e4 {[%clk 0:03:00]}  e5 {[%clk 0:02:57]} 2. Nf3 {[%clk 0:03:01]}  Nc6 {[%clk 0:02:55]} 3. d4 {[%clk 0:03:01]}  exd4 {[%clk 0:02:55]} 4. Nxd4 {[%clk 0:03:01]}  Nf6 {[%clk 0:02:54]} 5. Nxc6 {[%clk 0:03:01]}  bxc6 {[%clk 0:02:55]} 6. e5 {[%clk 0:03:02]}  Qe7 {[%clk 0:02:55]} 7. Qe2 {[%clk 0:03:02]}  Nd5 {[%clk 0:02:56]} 8. h4 {[%clk 0:03:03]}  a5 {[%clk 0:02:55]} 9. c4 {[%clk 0:03:02]}  Nb6 {[%clk 0:02:55]} 10. Nd2 {[%clk 0:02:59]}  Ba6 {[%clk 0:02:45]} 11. Qe4 {[%clk 0:02:53]}  Qe6 {[%clk 0:02:44]} 12. b3 {[%clk 0:02:44]}  Bb4 {[%clk 0:02:38]} 13. Bd3 {[%clk 0:02:33]}  Bc3 {[%clk 0:02:36]} 14. Rb1 {[%clk 0:02:32]}  Qxe5 {[%clk 0:02:37]} 15. O-O {[%clk 0:02:26]}  Qxe4 {[%clk 0:02:33]} 16. Nxe4 {[%clk 0:02:27]}  Bd4 {[%clk 0:02:31]} 17. Bb2 {[%clk 0:02:20]}  Bxb2 {[%clk 0:02:16]} 18. Rxb2 {[%clk 0:02:21]}  h6 {[%clk 0:02:06]} 19. Nc5 {[%clk 0:02:11]}  Bc8 {[%clk 0:01:41]} 20. Re1+ {[%clk 0:02:10]}  Kf8 {[%clk 0:01:42]} 21. Rbe2 {[%clk 0:02:08]} 1-0


[Site "https://www.chess.com"]

[Event "Titled Tuesday Blitz March 14 Late 2023"]
[White "Chabris, Christopher"]
[Black "Rios Escobar, Adan"]
[WhiteFideId "2005263"]
[BlackFideId "3403645"]
[WhiteElo "2196"]
[BlackElo "2372"]
[Result "0-1"]
[Round "06"]
[TimeControl "180+2"]
[Date "2023.03.14"]
[WhiteClock "0:00:05"]
[BlackClock "0:00:07"]

1. e4 {[%clk 0:02:59]}  c5 {[%clk 0:02:58]} 2. Nf3 {[%clk 0:03:00]}  d6 {[%clk 0:02:59]} 3. Bb5+ {[%clk 0:02:59]}  Nd7 {[%clk 0:02:58]} 4. d4 {[%clk 0:02:59]}  cxd4 {[%clk 0:02:55]} 5. Qxd4 {[%clk 0:02:59]}  e5 {[%clk 0:02:48]} 6. Qd3 {[%clk 0:02:59]}  a6 {[%clk 0:02:48]} 7. Bxd7+ {[%clk 0:02:59]}  Bxd7 {[%clk 0:02:48]} 8. c4 {[%clk 0:02:59]}  Rc8 {[%clk 0:02:43]} 9. Nc3 {[%clk 0:02:59]}  h6 {[%clk 0:02:44]} 10. O-O {[%clk 0:02:57]}  Nf6 {[%clk 0:02:40]} 11. a4 {[%clk 0:02:56]}  Bc6 {[%clk 0:02:40]} 12. Rd1 {[%clk 0:02:43]}  Be7 {[%clk 0:02:38]} 13. Ne1 {[%clk 0:02:37]}  Qc7 {[%clk 0:02:22]} 14. Nc2 {[%clk 0:02:31]}  O-O {[%clk 0:02:21]} 15. Ne3 {[%clk 0:02:30]}  b6 {[%clk 0:02:20]} 16. Nf5 {[%clk 0:02:28]}  Rfd8 {[%clk 0:02:14]} 17. Bxh6 {[%clk 0:02:18]}  gxh6 {[%clk 0:02:02]} 18. Qg3+ {[%clk 0:02:17]}  Kf8 {[%clk 0:02:02]} 19. Qg7+ {[%clk 0:02:15]}  Ke8 {[%clk 0:02:02]} 20. Nd5 {[%clk 0:01:55]}  Bxd5 {[%clk 0:01:57]} 21. cxd5 {[%clk 0:01:49]}  Nxe4 {[%clk 0:01:34]} 22. Qg8+ {[%clk 0:01:08]}  Bf8 {[%clk 0:01:23]} 23. Ng7+ {[%clk 0:01:05]}  Ke7 {[%clk 0:01:11]} 24. Nf5+ {[%clk 0:01:05]}  Kf6 {[%clk 0:01:10]} 25. g4 {[%clk 0:00:55]}  Qc2 {[%clk 0:00:56]} 26. Rf1 {[%clk 0:00:42]}  Nd2 {[%clk 0:00:26]} 27. f4 {[%clk 0:00:32]}  exf4 {[%clk 0:00:13]} 28. h4 {[%clk 0:00:32]}  Ke5 {[%clk 0:00:12]} 29. Qxf7 {[%clk 0:00:29]}  Re8 {[%clk 0:00:08]} 30. Rfe1+ {[%clk 0:00:28]}  Ne4 {[%clk 0:00:09]} 31. Rxe4+ {[%clk 0:00:11]}  Qxe4 {[%clk 0:00:08]} 32. Kf2 {[%clk 0:00:05]}  Rc2+ {[%clk 0:00:07]} 33. Kf1 {[%clk 0:00:05]}  Qe2+ {[%clk 0:00:07]} 0-1


[Site "https://www.chess.com"]

[Event "Titled Tuesday Blitz March 14 Late 2023"]
[White "Aung Thant Zin"]
[Black "Delgado Rosas, Fatima Alexandra"]
[WhiteFideId "13000063"]
[BlackFideId "6603963"]
[WhiteElo "2278"]
[BlackElo "2327"]
[Result "1/2-1/2"]
[Round "06"]
[TimeControl "180+2"]
[Date "2023.03.14"]
[WhiteClock "0:00:09"]
[BlackClock "0:01:05"]

1. e4 {[%clk 0:02:57]}  Nc6 {[%clk 0:02:57]} 2. Nf3 {[%clk 0:02:57]}  d5 {[%clk 0:02:55]} 3. exd5 {[%clk 0:02:57]}  Qxd5 {[%clk 0:02:56]} 4. Nc3 {[%clk 0:02:58]}  Qh5 {[%clk 0:02:56]} 5. Be2 {[%clk 0:02:58]}  Bg4 {[%clk 0:02:56]} 6. d3 {[%clk 0:02:58]}  Nf6 {[%clk 0:02:55]} 7. Be3 {[%clk 0:02:56]}  O-O-O {[%clk 0:02:55]} 8. Qd2 {[%clk 0:02:56]}  e5 {[%clk 0:02:56]} 9. O-O-O {[%clk 0:02:34]}  Bb4 {[%clk 0:02:55]} 10. h3 {[%clk 0:02:31]}  Bxf3 {[%clk 0:02:54]} 11. Bxf3 {[%clk 0:02:31]}  Qg6 {[%clk 0:02:51]} 12. Qe1 {[%clk 0:02:17]}  Nd5 {[%clk 0:02:45]} 13. Bxd5 {[%clk 0:02:15]}  Rxd5 {[%clk 0:02:45]} 14. g4 {[%clk 0:02:00]}  Qe6 {[%clk 0:02:34]} 15. Bd2 {[%clk 0:01:44]}  Bxc3 {[%clk 0:02:33]} 16. Bxc3 {[%clk 0:01:43]}  Rb5 {[%clk 0:02:33]} 17. Kb1 {[%clk 0:01:36]}  Re8 {[%clk 0:02:29]} 18. Qe4 {[%clk 0:01:33]}  a5 {[%clk 0:02:28]} 19. Qxh7 {[%clk 0:01:26]}  Nb4 {[%clk 0:02:25]} 20. Bxb4 {[%clk 0:01:26]}  Rxb4 {[%clk 0:02:25]} 21. Rhe1 {[%clk 0:01:08]}  a4 {[%clk 0:02:20]} 22. a3 {[%clk 0:01:04]}  Rb5 {[%clk 0:02:18]} 23. Qf5 {[%clk 0:00:56]}  Qxf5 {[%clk 0:02:11]} 24. gxf5 {[%clk 0:00:57]}  Rh8 {[%clk 0:02:11]} 25. Re3 {[%clk 0:00:56]}  f6 {[%clk 0:02:08]} 26. Rg1 {[%clk 0:00:55]}  Rh5 {[%clk 0:02:06]} 27. Rf3 {[%clk 0:00:51]}  Rh7 {[%clk 0:01:58]} 28. Rg4 {[%clk 0:00:50]}  Ra5 {[%clk 0:01:54]} 29. Kc1 {[%clk 0:00:38]}  b5 {[%clk 0:01:54]} 30. Kd2 {[%clk 0:00:37]}  Kb7 {[%clk 0:01:54]} 31. Ke3 {[%clk 0:00:37]}  Ra8 {[%clk 0:01:54]} 32. Rb4 {[%clk 0:00:31]}  c6 {[%clk 0:01:54]} 33. c4 {[%clk 0:00:31]}  Kb6 {[%clk 0:01:54]} 34. cxb5 {[%clk 0:00:31]}  cxb5 {[%clk 0:01:55]} 35. Rg4 {[%clk 0:00:23]}  Rah8 {[%clk 0:01:56]} 36. Kd2 {[%clk 0:00:18]}  Kc5 {[%clk 0:01:56]} 37. Rfg3 {[%clk 0:00:17]}  Rxh3 {[%clk 0:01:55]} 38. Rxg7 {[%clk 0:00:13]}  Rxg3 {[%clk 0:01:54]} 39. fxg3 {[%clk 0:00:11]}  Rh2+ {[%clk 0:01:54]} 40. Kc3 {[%clk 0:00:11]}  Rf2 {[%clk 0:01:53]} 41. g4 {[%clk 0:00:11]}  Rf4 {[%clk 0:01:53]} 42. Rg6 {[%clk 0:00:09]}  Kd5 {[%clk 0:01:53]} 43. Rxf6 {[%clk 0:00:09]}  Rxg4 {[%clk 0:01:54]} 44. Rb6 {[%clk 0:00:09]}  Kc5 {[%clk 0:01:52]} 45. Re6 {[%clk 0:00:09]}  Kd5 {[%clk 0:01:52]} 46. Rb6 {[%clk 0:00:09]}  Kc5 {[%clk 0:01:17]} 47. Re6 {[%clk 0:00:09]}  Kd5 {[%clk 0:01:05]} 48. Rb6 {[%clk 0:00:09]} 1/2-1/2


[Site "https://www.chess.com"]